bitfinex/quotes_BTCUSD_20251010
["timestamp","ask_amount","ask_price","bid_price","bid_amount"]
[1760098512778,2.72592836,121720.0,121710.0,0.00096288]
[1760098512999,7.72592836,121720.0,121710.0,0.00096288]
[1760098513939,2.72592836,121720.0,121710.0,0.00096288]
[1760098514159,7.72592836,121720.0,121710.0,0.00096288]
[1760098514576,2.72592836,121720.0,121710.0,0.00096288]
[1760098514783,7.72592836,121720.0,121710.0,0.00096288]
[1760098515216,2.72592836,121720.0,121710.0,0.00096288]
[1760098515420,7.72592836,121720.0,121710.0,0.00096288]
[1760098515645,2.72592836,121720.0,121710.0,0.00096288]
[1760098516076,7.72592836,121720.0,121710.0,0.00096288]
[1760098516689,2.72592836,121720.0,121710.0,0.00096288]
[1760098516908,7.75608026,121720.0,121710.0,0.00096288]
[1760098517123,8.00413416,121720.0,121710.0,1e-08]
[1760098517356,8.39214735,121720.0,121710.0,1e-08]
[1760098517568,3.62422735,121720.0,121710.0,1e-08]
[1760098517985,8.19581542,121720.0,121710.0,1e-08]
[1760098518414,8.43813543,121720.0,121710.0,1e-08]
[1760098518674,3.53813542,121720.0,121710.0,1e-08]
[1760098518899,3.43813543,121720.0,121710.0,1e-08]
[1760098519118,3.53813542,121720.0,121710.0,1e-08]
[1760098519538,8.53813542,121720.0,121710.0,1e-08]
[1760098520000,3.53813542,121720.0,121710.0,1e-08]
[1760098520223,8.53813542,121720.0,121710.0,1e-08]
[1760098520650,3.43813543,121720.0,121710.0,1e-08]
[1760098520862,8.43813543,121720.0,121710.0,1e-08]
[1760098521106,3.43813543,121720.0,121710.0,1e-08]
[1760098521544,8.43813543,121720.0,121710.0,1e-08]
[1760098521757,3.43813543,121720.0,121710.0,1e-08]
[1760098522386,8.43813543,121720.0,121710.0,1e-08]
[1760098522602,3.43813543,121720.0,121710.0,1e-08]
[1760098523038,8.43813543,121720.0,121710.0,1e-08]
[1760098523260,5.82932502,121710.0,121700.0,1e-08]
[1760098523491,7.35277278,121710.0,121700.0,5.029e-05]
[1760098523703,7.16605468,121710.0,121700.0,5.029e-05]
[1760098523940,7.76496468,121710.0,121700.0,5.029e-05]
[1760098524161,7.48682384,121710.0,121700.0,5.029e-05]
[1760098524568,1.82686384,121710.0,121700.0,5.029e-05]
[1760098524797,7.48782384,121710.0,121700.0,5.029e-05]
[1760098525006,7.47240586,121710.0,121700.0,5.029e-05]
[1760098525226,7.2557307,121710.0,121700.0,5.029e-05]
[1760098525429,7.4878107,121710.0,121700.0,5.029e-05]
[1760098525634,7.9971458,121710.0,121700.0,5.029e-05]
[1760098526306,2.9971458,121710.0,121700.0,5.029e-05]
[1760098526544,7.9971458,121710.0,121700.0,5.029e-05]
[1760098526993,2.9971458,121710.0,121700.0,5.029e-05]
[1760098527199,7.9971458,121710.0,121700.0,5.029e-05]
[1760098527407,7.3381858,121710.0,121700.0,5.029e-05]
[1760098527615,7.9982258,121710.0,121700.0,5.029e-05]
[1760098527886,7.7661058,121710.0,121700.0,5.029e-05]
[1760098528106,7.9982258,121710.0,121700.0,5.029e-05]
[1760098528329,7.7661058,121710.0,121700.0,5.029e-05]
[1760098528780,7.9982258,121710.0,121700.0,5.029e-05]
[1760098528996,7.9982258,121710.0,121700.0,0.00056295]
[1760098529217,7.7661058,121710.0,121700.0,0.00056295]
[1760098529873,7.9982258,121710.0,121700.0,0.00056295]
[1760098530311,2.9982258,121710.0,121700.0,0.00056295]
[1760098530523,7.9982258,121710.0,121700.0,0.00056295]
[1760098530976,7.6982258,121710.0,121700.0,0.00056295]
[1760098531190,2.3805458,121710.0,121700.0,0.00056295]
[1760098531403,7.6982258,121710.0,121700.0,0.00056295]
[1760098531837,2.6982258,121710.0,121700.0,0.00056295]
[1760098532265,7.6982258,121710.0,121700.0,0.00056295]
[1760098532707,7.9982258,121710.0,121700.0,0.00056295]
[1760098532956,2.9982258,121710.0,121700.0,0.00056295]
[1760098533182,7.9982258,121710.0,121700.0,0.00056295]
[1760098533409,2.9982258,121710.0,121700.0,0.00056295]
[1760098533647,7.9982258,121710.0,121700.0,0.00056295]
[1760098534762,7.3381858,121710.0,121700.0,0.00056295]
[1760098534984,2.07482935,121710.0,121700.0,0.00056295]
[1760098535210,1.35057959,121710.0,121700.0,0.00056295]
[1760098535428,1.61977876,121710.0,121700.0,0.00056295]
[1760098535655,1.95977876,121710.0,121700.0,0.00056295]
[1760098535872,1.72665876,121710.0,121700.0,0.00056295]
[1760098536102,1.95877876,121710.0,121700.0,0.00056295]
[1760098536317,1.95977876,121710.0,121700.0,0.00056295]
[1760098536780,2.27926843,121710.0,121700.0,0.00056295]
[1760098536997,1.63628909,121710.0,121700.0,0.00056295]
[1760098537220,2.27926843,121710.0,121700.0,0.00056295]
[1760098541812,2.30471224,121710.0,121700.0,0.00056295]
[1760098542056,2.42080389,121710.0,121700.0,0.00056295]
[1760098542265,7.83080528,121710.0,121700.0,0.00056295]
[1760098542486,0.50433853,121700.0,121690.0,0.0004]
[1760098542697,6.4184222,121700.0,121690.0,0.0004]
[1760098542960,7.37733618,121700.0,121690.0,0.0004]
[1760098543206,7.63355818,121700.0,121690.0,0.00091271]
[1760098543425,6.72755417,121700.0,121690.0,0.00091271]
[1760098543641,6.75578917,121700.0,121690.0,0.00091271]
[1760098543863,6.74970817,121700.0,121690.0,0.00091271]
[1760098544069,6.76731517,121700.0,121690.0,0.00091271]
[1760098544276,6.80191617,121700.0,121690.0,0.00091271]
[1760098544496,6.80988117,121700.0,121690.0,0.00091271]
[1760098544702,6.79227417,121700.0,121690.0,0.00091271]
[1760098545125,2.45878717,121700.0,121690.0,0.00091271]
[1760098545343,6.89220017,121700.0,121690.0,0.00091271]
[1760098545753,7.04111317,121700.0,121690.0,0.00091271]
[1760098545974,7.12343317,121700.0,121690.0,0.00091271]
[1760098546189,2.45878717,121700.0,121690.0,0.00091271]
[1760098546412,7.10602817,121700.0,121690.0,0.00091271]
[1760098546620,7.12363617,121700.0,121690.0,0.00091271]
[1760098546840,2.45878717,121700.0,121690.0,0.00091271]
[1760098547093,7.12359517,121700.0,121690.0,0.00091271]
[1760098547306,7.27062817,121700.0,121690.0,0.00091271]
[1760098547740,7.28823517,121700.0,121690.0,0.00091271]
[1760098548196,7.10305517,121700.0,121690.0,0.00091271]
[1760098548452,2.67540717,121700.0,121690.0,0.00091271]
[1760098548673,7.69608717,121700.0,121690.0,0.00091271]
[1760098548857,2.90748717,121700.0,121690.0,0.00091271]
[1760098549310,7.73693717,121700.0,121690.0,0.00091271]
[1760098549491,2.90748717,121700.0,121690.0,0.00091271]
[1760098549731,7.73693617,121700.0,121690.0,0.00091271]
[1760098549940,2.90748717,121700.0,121690.0,0.00091271]
[1760098550161,7.71932917,121700.0,121690.0,0.00091271]
[1760098550385,2.90752717,121700.0,121690.0,0.00091271]
[1760098550616,7.57233617,121700.0,121690.0,0.00091271]
[1760098550840,2.90752717,121700.0,121690.0,0.00091271]
[1760098551063,7.73697617,121700.0,121690.0,0.00091271]
[1760098551279,7.71937017,121700.0,121690.0,0.00091271]
[1760098551493,2.90752717,121700.0,121690.0,0.00091271]
[1760098551702,7.65465717,121700.0,121690.0,0.00091271]
[1760098551911,7.55473017,121700.0,121690.0,0.00091271]
[1760098552137,2.90752717,121700.0,121690.0,0.00091271]
[1760098552353,7.73697717,121700.0,121690.0,0.00091271]
[1760098552566,7.54827217,121700.0,121690.0,0.00091271]
[1760098552771,6.94305816,121700.0,121690.0,0.00091271]
[1760098552981,2.90752717,121700.0,121690.0,0.00091271]
[1760098553197,7.90752717,121700.0,121690.0,0.00091271]
[1760098553649,2.90752717,121700.0,121690.0,0.00091271]
[1760098553876,7.90752717,121700.0,121690.0,0.00091271]
[1760098554322,7.45882717,121700.0,121690.0,0.00091271]
[1760098554753,4.80199919,121700.0,121690.0,0.00091271]
[1760098554965,6.00117219,121700.0,121690.0,0.00091271]
[1760098555177,2.86002519,121700.0,121690.0,0.00091271]
[1760098555390,6.19280333,121700.0,121690.0,0.00091271]
[1760098555608,6.20424033,121700.0,121690.0,0.00091271]
[1760098555828,2.86002333,121700.0,121690.0,0.00091271]
[1760098556066,3.96394652,121700.0,121690.0,0.00091271]
[1760098556271,3.16555085,121700.0,121690.0,0.00091271]
[1760098556488,2.49221952,121700.0,121690.0,0.00091271]
[1760098556705,3.67122452,121700.0,121690.0,0.00091271]
[1760098556929,3.87804752,121700.0,121690.0,0.00091271]
[1760098557151,2.49221952,121700.0,121690.0,0.00091271]
[1760098557366,3.97881952,121700.0,121690.0,0.00091271]
[1760098557581,3.81399552,121700.0,121690.0,0.00091271]
[1760098557796,2.49221952,121700.0,121690.0,0.00091271]
[1760098558022,3.87468452,121700.0,121690.0,0.00091271]
[1760098558244,3.34014252,121700.0,121690.0,0.00091271]
[1760098558499,3.69869052,121700.0,121690.0,0.00091271]
[1760098558723,2.49221952,121700.0,121690.0,0.00091271]
[1760098559145,3.81942152,121700.0,121690.0,0.00091271]
[1760098559394,3.78140649,121700.0,121690.0,0.00091271]
[1760098559601,3.71685449,121700.0,121690.0,0.00091271]
[1760098559821,3.78165449,121700.0,121690.0,0.00091271]
[1760098560041,3.71685449,121700.0,121690.0,0.00091271]
[1760098560257,2.45420449,121700.0,121690.0,0.00091271]
[1760098560477,3.92259149,121700.0,121690.0,0.00091271]
[1760098560709,2.45420449,121700.0,121690.0,0.00091271]
[1760098560933,3.95639849,121700.0,121690.0,0.00091271]
[1760098561146,3.95639949,121700.0,121690.0,0.00091271]
[1760098561396,3.93879249,121700.0,121690.0,0.00091271]
[1760098561599,3.95639949,121700.0,121690.0,0.00091271]
[1760098561814,2.45420449,121700.0,121690.0,0.00091271]
[1760098562034,2.47067449,121700.0,121690.0,0.00091271]
[1760098562266,3.95636549,121700.0,121690.0,0.00091271]
[1760098562488,4.05358849,121700.0,121690.0,0.00091271]
[1760098562696,2.45420449,121700.0,121690.0,0.00091271]
[1760098562913,3.95945349,121700.0,121690.0,0.00091271]
[1760098563134,3.99498649,121700.0,121690.0,0.00091271]
[1760098563359,2.45420449,121700.0,121690.0,0.00091271]
[1760098563543,3.96189149,121700.0,121690.0,0.00091271]
[1760098563844,3.99635549,121700.0,121690.0,0.00091271]
[1760098564311,2.45420449,121700.0,121690.0,0.00091271]
[1760098564778,2.89332149,121700.0,121690.0,0.00091271]
[1760098564991,1.61267785,121700.0,121690.0,0.00091271]
[1760098565175,1.91452893,121700.0,121690.0,0.00091271]
[1760098565437,2.48664893,121700.0,121690.0,0.00091271]
[1760098565657,2.14433993,121700.0,121690.0,0.00091271]
[1760098565869,2.48686893,121700.0,121690.0,0.00091271]
[1760098566335,2.14433993,121700.0,121690.0,0.00091271]
[1760098566552,2.58977193,121700.0,121690.0,0.00091271]
[1760098566764,2.55150393,121700.0,121690.0,0.00091271]
[1760098567193,2.14433993,121700.0,121690.0,0.00091271]
[1760098568945,1.84433993,121700.0,121690.0,0.00091271]
[1760098569163,2.14433993,121700.0,121690.0,0.00091271]
[1760098569375,2.44433993,121700.0,121690.0,0.00091271]
[1760098570849,2.44429993,121700.0,121690.0,0.00091271]
[1760098573061,2.23697293,121700.0,121690.0,0.00091271]
[1760098573273,2.32253293,121700.0,121690.0,0.00091271]
[1760098575379,2.00489293,121700.0,121690.0,0.00091271]
[1760098575609,1.31680159,121700.0,121690.0,0.00091271]
[1760098575825,2.25978093,121700.0,121690.0,0.00091271]
[1760098580020,2.02770093,121700.0,121690.0,0.00091271]
[1760098580238,2.25978093,121700.0,121690.0,0.00091271]
[1760098581387,2.5812706,121700.0,121690.0,0.00091271]
[1760098581619,2.61182819,121700.0,121690.0,0.00091271]
[1760098585649,2.07592903,121700.0,121690.0,0.00091271]
[1760098592417,2.04537144,121700.0,121690.0,0.00091271]
[1760098592633,1.81329144,121700.0,121690.0,0.00091271]
[1760098592859,2.04537144,121700.0,121690.0,0.00091271]
[1760098593506,1.81329144,121700.0,121690.0,0.00091271]
[1760098593720,2.04537144,121700.0,121690.0,0.00091271]
[1760098595839,1.81329144,121700.0,121690.0,0.00091271]
[1760098596056,2.04537144,121700.0,121690.0,0.00091271]
[1760098596465,1.72773144,121700.0,121690.0,0.00091271]
[1760098596685,2.04537144,121700.0,121690.0,0.00091271]
[1760098599219,1.87002084,121700.0,121690.0,0.00091271]
[1760098599410,6.12494028,121700.0,121690.0,0.00091271]
[1760098599638,7.51001055,121700.0,121690.0,0.00091271]
[1760098599865,7.1342867,121700.0,121690.0,0.00091271]
[1760098600145,2.3353337,121700.0,121690.0,0.00091271]
[1760098600359,6.9847397,121700.0,121690.0,0.00091271]
[1760098600568,7.60454555,121700.0,121690.0,0.00091271]
[1760098600782,7.41347455,121700.0,121690.0,0.00091271]
[1760098600980,2.76390355,121700.0,121690.0,0.00091271]
[1760098601194,7.58524455,121700.0,121690.0,0.00091271]
[1760098601366,7.55854253,121700.0,121690.0,0.00091271]
[1760098601582,2.30863168,121700.0,121690.0,0.00091271]
[1760098601813,7.73720153,121700.0,121690.0,0.00091271]
[1760098602205,6.00023768,121700.0,121690.0,0.00091271]
[1760098602406,5.37498368,121700.0,121690.0,0.00091271]
[1760098602610,4.04800668,121700.0,121690.0,0.00091271]
[1760098602838,4.21542568,121700.0,121690.0,0.00091271]
[1760098603037,4.30119768,121700.0,121690.0,0.00091271]
[1760098603192,4.28900568,121700.0,121690.0,0.00091271]
[1760098603411,4.40976868,121700.0,121690.0,0.00091271]
[1760098603615,2.65899168,121700.0,121690.0,0.00091271]
[1760098603834,4.49208868,121700.0,121690.0,0.00091271]
[1760098604037,4.49213168,121700.0,121690.0,0.00091271]
[1760098604338,4.61561168,121700.0,121690.0,0.00091271]
[1760098604517,4.79032968,121700.0,121690.0,0.00091271]
[1760098604743,3.10769168,121700.0,121690.0,0.00091271]
[1760098604935,3.11098652,121700.0,121690.0,0.00091271]
[1760098605596,5.44471252,121700.0,121690.0,0.00091271]
[1760098605805,5.46231952,121700.0,121690.0,0.00091271]
[1760098606342,3.11098652,121700.0,121690.0,0.00091271]
[1760098606580,5.46857952,121700.0,121690.0,0.00091271]
[1760098606806,5.49818652,121700.0,121690.0,0.00091271]
[1760098607537,3.11098652,121700.0,121690.0,0.00091271]
[1760098607778,5.49818652,121700.0,121690.0,0.00091271]
[1760098607995,2.87890652,121700.0,121690.0,0.00091271]
[1760098608225,5.31406152,121700.0,121690.0,0.00091271]
[1760098608477,5.20783052,121700.0,121690.0,0.00091271]
[1760098608772,4.80548452,121700.0,121690.0,0.00091271]
[1760098608988,2.76062652,121700.0,121690.0,0.00091271]
[1760098609203,4.80546852,121700.0,121690.0,0.00091271]
[1760098610113,4.71589452,121700.0,121690.0,0.00091271]
[1760098610328,4.48057452,121700.0,121690.0,0.00091271]
[1760098610540,4.52040952,121700.0,121690.0,0.00091271]
[1760098610770,4.67185452,121700.0,121690.0,0.00091271]
[1760098610997,2.76062652,121700.0,121690.0,0.00091271]
[1760098611215,4.69477552,121700.0,121690.0,0.00091271]
[1760098611424,4.91475752,121700.0,121690.0,0.00091271]
[1760098611635,2.76062652,121700.0,121690.0,0.00091271]
[1760098611841,4.91475752,121700.0,121690.0,0.00091271]
[1760098612508,2.76062652,121700.0,121690.0,0.00091271]
[1760098612742,4.75475752,121700.0,121690.0,0.00091271]
[1760098612966,2.76062652,121700.0,121690.0,0.00091271]
[1760098613206,4.75475752,121700.0,121690.0,0.00091271]
[1760098613666,2.76062652,121700.0,121690.0,0.00091271]
[1760098613875,4.71705752,121700.0,121690.0,0.00091271]
[1760098614085,4.46083252,121700.0,121690.0,0.00091271]
[1760098614289,2.76062652,121700.0,121690.0,0.00091271]
[1760098614536,4.98877752,121700.0,121690.0,0.00091271]
[1760098614803,4.93049552,121700.0,121690.0,0.00091271]
[1760098615001,4.92984552,121700.0,121690.0,0.00091271]
[1760098615421,2.76062652,121700.0,121690.0,0.00091271]
[1760098615853,4.91776052,121700.0,121690.0,0.00091271]
[1760098616085,2.76062652,121700.0,121690.0,0.00091271]
[1760098616296,4.91776052,121700.0,121690.0,0.00091271]
[1760098616515,2.76062652,121700.0,121690.0,0.00091271]
[1760098616725,5.23636252,121700.0,121690.0,0.00091271]
[1760098616950,5.05186252,121700.0,121690.0,0.00091271]
[1760098617185,5.07507352,121700.0,121690.0,0.00091271]
[1760098617451,2.76062652,121700.0,121690.0,0.00091271]
[1760098618134,5.05137252,121700.0,121690.0,0.00091271]
[1760098618769,2.76062652,121700.0,121690.0,0.00091271]
[1760098618972,4.81725252,121700.0,121690.0,0.00091271]
[1760098619301,4.81965252,121700.0,121690.0,0.00091271]
[1760098619484,2.76062652,121700.0,121690.0,0.00091271]
[1760098619745,5.01025237,121700.0,121690.0,0.00091271]
[1760098619970,5.36335321,121700.0,121690.0,0.00091271]
[1760098620196,5.94972521,121700.0,121690.0,0.00091271]
[1760098620429,6.01645221,121700.0,121690.0,0.00091271]
[1760098620642,7.22602221,121700.0,121690.0,0.00091271]
[1760098620855,3.11045321,121700.0,121690.0,0.00091271]
[1760098621080,8.03468821,121700.0,121690.0,0.00091271]
[1760098621512,3.11045321,121700.0,121690.0,0.00091271]
[1760098621925,8.11045321,121700.0,121690.0,0.00091271]
[1760098622125,3.11045321,121700.0,121690.0,0.00091271]
[1760098622385,8.11045321,121700.0,121690.0,0.00091271]
[1760098622835,7.98392266,121700.0,121690.0,0.00091271]
[1760098623050,8.00152966,121700.0,121690.0,0.00091271]
[1760098623261,8.11044366,121700.0,121690.0,0.00091271]
[1760098623881,3.11044366,121700.0,121690.0,0.00091271]
[1760098624089,8.11044366,121700.0,121690.0,0.00091271]
[1760098624295,8.08284682,121700.0,121690.0,0.00091271]
[1760098625400,3.36669897,121700.0,121690.0,0.00091271]
[1760098625616,2.78989232,121700.0,121690.0,0.00091271]
[1760098625828,3.84105332,121700.0,121690.0,0.00091271]
[1760098626048,3.82694632,121700.0,121690.0,0.00091271]
[1760098626264,3.16694632,121700.0,121690.0,0.00091271]
[1760098626495,1.95631232,121700.0,121690.0,0.00091271]
[1760098626709,3.25250632,121700.0,121690.0,0.00091271]
[1760098626916,3.16694632,121700.0,121690.0,0.00091271]
[1760098627131,3.52502132,121700.0,121690.0,0.00091271]
[1760098627328,1.72423232,121700.0,121690.0,0.00091271]
[1760098627524,3.34287532,121700.0,121690.0,0.00091271]
[1760098627740,3.75404032,121700.0,121690.0,0.00091271]
[1760098627943,3.36685732,121700.0,121690.0,0.00091271]
[1760098628143,3.64523232,121700.0,121690.0,0.00091271]
[1760098628360,3.41315232,121700.0,121690.0,0.00091271]
[1760098628558,3.64523232,121700.0,121690.0,0.00091271]
[1760098628925,1.95631232,121700.0,121690.0,0.00091271]
[1760098629152,3.64523232,121700.0,121690.0,0.00091271]
[1760098629349,1.95631232,121700.0,121690.0,0.00091271]
[1760098629597,3.73414232,121700.0,121690.0,0.00091271]
[1760098629802,1.95631232,121700.0,121690.0,0.00091271]
[1760098630047,3.73414232,121700.0,121690.0,0.00091271]
[1760098630165,3.46121732,121700.0,121690.0,0.00091271]
[1760098630361,1.72423232,121700.0,121690.0,0.00091271]
[1760098630568,3.47595432,121700.0,121690.0,0.00091271]
[1760098630774,1.95631232,121700.0,121690.0,0.00091271]
[1760098631200,3.58159932,121700.0,121690.0,0.00091271]
[1760098631404,3.52656032,121700.0,121690.0,0.00091271]
[1760098631610,3.55957032,121700.0,121690.0,0.00091271]
[1760098631814,3.79165032,121700.0,121690.0,0.00091271]
[1760098632021,3.83249532,121700.0,121690.0,0.00091271]
[1760098632222,1.95631232,121700.0,121690.0,0.00091271]
[1760098632659,3.49172932,121700.0,121690.0,0.00091271]
[1760098632883,3.57119932,121700.0,121690.0,0.00091271]
[1760098633108,3.49172932,121700.0,121690.0,0.00091271]
[1760098633338,3.53052432,121700.0,121690.0,0.00091271]
[1760098633561,3.56309332,121700.0,121690.0,0.00091271]
[1760098633802,1.72423232,121700.0,121690.0,0.00091271]
[1760098634079,1.95631232,121700.0,121690.0,0.00091271]
[1760098634296,3.75432832,121700.0,121690.0,0.00091271]
[1760098634511,3.66614832,121700.0,121690.0,0.00091271]
[1760098634724,3.43406832,121700.0,121690.0,0.00091271]
[1760098634951,3.70645332,121700.0,121690.0,0.00091271]
[1760098635205,3.63897832,121700.0,121690.0,0.00091271]
[1760098635457,3.67179732,121700.0,121690.0,0.00091271]
[1760098635707,1.72423232,121700.0,121690.0,0.00091271]
[1760098635936,2.41077032,121700.0,121690.0,0.00091271]
[1760098636163,2.41488032,121700.0,121690.0,0.00091271]
[1760098636432,2.41456032,121700.0,121690.0,0.00091271]
[1760098636660,2.42850532,121700.0,121690.0,0.00091271]
[1760098636933,3.12797272,121700.0,121690.0,0.00091271]
[1760098637162,3.20939772,121700.0,121690.0,0.00091271]
[1760098637381,1.98827272,121700.0,121690.0,0.00091271]
[1760098637606,2.93683772,121700.0,121690.0,0.00091271]
[1760098637807,3.01575272,121700.0,121690.0,0.00091271]
[1760098638038,1.98827272,121700.0,121690.0,0.00091271]
[1760098638264,3.08573772,121700.0,121690.0,0.00091271]
[1760098638491,3.01573772,121700.0,121690.0,0.00091271]
[1760098639149,3.09573772,121700.0,121690.0,0.00091271]
[1760098639367,1.98827272,121700.0,121690.0,0.00091271]
[1760098639593,3.07105272,121700.0,121690.0,0.00091271]
[1760098639825,3.11503772,121700.0,121690.0,0.00091271]
[1760098640051,2.93670372,121700.0,121690.0,0.00091271]
[1760098640555,2.96915972,121700.0,121690.0,0.00091271]
[1760098640794,2.90435972,121700.0,121690.0,0.00091271]
[1760098641021,1.98827272,121700.0,121690.0,0.00091271]
[1760098641232,2.93047072,121700.0,121690.0,0.00091271]
[1760098641902,2.86528472,121700.0,121690.0,0.00091271]
[1760098642092,1.75619272,121700.0,121690.0,0.00091271]
[1760098642313,2.40055372,121700.0,121690.0,0.00091271]
[1760098642530,2.56649472,121700.0,121690.0,0.00091271]
[1760098642743,1.98827272,121700.0,121690.0,0.00091271]
[1760098642958,2.60006772,121700.0,121690.0,0.00091271]
[1760098643604,2.59586172,121700.0,121690.0,0.00091271]
[1760098643814,2.56390132,121700.0,121690.0,0.00091271]
[1760098644030,2.56801132,121700.0,121690.0,0.00091271]
[1760098644691,2.56785732,121700.0,121690.0,0.00091271]
[1760098644901,1.95631232,121700.0,121690.0,0.00091271]
[1760098645453,2.49202788,121700.0,121690.0,0.00091271]
[1760098646607,2.49202301,121700.0,121690.0,0.00091271]
[1760098647692,1.75556557,121700.0,121690.0,0.00091271]
[1760098647926,2.39842251,121700.0,121690.0,0.00091271]
[1760098649138,2.16634251,121700.0,121690.0,0.00091271]
[1760098649306,2.39842251,121700.0,121690.0,0.00091271]
[1760098651220,2.39841704,121700.0,121690.0,0.00091271]
[1760098651842,2.16633704,121700.0,121690.0,0.00091271]
[1760098652047,2.39841704,121700.0,121690.0,0.00091271]
[1760098654184,2.16633704,121700.0,121690.0,0.00091271]
[1760098654396,2.39067837,121700.0,121690.0,0.00091271]
[1760098654611,2.33036653,121700.0,121690.0,0.00091271]
[1760098656250,2.09832653,121700.0,121690.0,0.00091271]
[1760098656501,2.1485218,121700.0,121690.0,0.00091271]
[1760098656709,1.9189618,121700.0,121690.0,0.00091271]
[1760098656903,2.1510018,121700.0,121690.0,0.00091271]
[1760098657104,1.9189618,121700.0,121690.0,0.00091271]
[1760098657531,2.1510018,121700.0,121690.0,0.00091271]
[1760098662311,1.9189618,121700.0,121690.0,0.00091271]
[1760098662518,2.1510018,121700.0,121690.0,0.00091271]
[1760098662732,2.1510018,121700.0,121690.0,0.01749271]
[1760098662959,2.1283618,121700.0,121690.0,0.01749271]
[1760098664026,2.1520818,121700.0,121690.0,0.00091271]
[1760098664959,2.1520818,121700.0,121690.0,0.04544791]
[1760098664960,2.2421328,121700.0,121690.0,0.04544791]
[1760098667234,2.2421328,121700.0,121690.0,0.20979995]
[1760098667468,1.9094328,121700.0,121690.0,0.21783475]
[1760098667665,1.9949928,121700.0,121690.0,0.21783475]
[1760098668153,2.2270328,121700.0,121690.0,0.21783475]
[1760098670826,2.06269427,121700.0,121690.0,0.21783475]
[1760098671266,2.2270328,121700.0,121690.0,0.21783475]
[1760098672637,2.2245528,121700.0,121690.0,0.21783475]
[1760098673753,1.9925128,121700.0,121690.0,0.21783475]
[1760098673976,2.2245528,121700.0,121690.0,0.21783475]
[1760098678192,2.06021427,121700.0,121690.0,0.21783475]
[1760098678905,2.2245528,121700.0,121690.0,0.21783475]
[1760098681754,1.9925128,121700.0,121690.0,0.21783475]
[1760098681993,2.2245528,121700.0,121690.0,0.21783475]
[1760098682231,0.15975733,121700.0,121690.0,0.57873408]
[1760098682445,0.39179733,121700.0,121690.0,0.25730561]
[1760098685542,0.7132258,121700.0,121690.0,0.25730561]
[1760098687277,0.7131858,121700.0,121690.0,0.25730561]
[1760098688881,1.05270427,121700.0,121690.0,0.19336475]
[1760098689123,0.82070427,121700.0,121690.0,0.19336475]
[1760098689349,1.05270427,121700.0,121690.0,0.19336475]
[1760098689576,1.03709427,121700.0,121690.0,0.21632475]
[1760098690025,1.03461427,121700.0,121690.0,0.21632475]
[1760098690238,0.39175733,121700.0,121690.0,0.21632475]
[1760098690487,1.03461427,121700.0,121690.0,0.25811498]
[1760098691644,0.7131858,121700.0,121690.0,0.25811498]
[1760098691864,0.39175733,121700.0,121690.0,0.25811498]
[1760098692096,0.7131858,121700.0,121690.0,0.25811498]
[1760098695700,0.7131858,121700.0,121690.0,0.21632475]
[1760098699218,0.7131858,121700.0,121690.0,0.21732475]
[1760098699431,0.4811858,121700.0,121690.0,0.21732475]
[1760098699673,0.7131858,121700.0,121690.0,0.21732475]
[1760098702801,0.15975733,121700.0,121690.0,0.21732475]
[1760098703025,0.15975733,121700.0,121690.0,0.29135783]
[1760098703244,0.39175733,121700.0,121690.0,0.63748937]
[1760098703482,0.39175733,121700.0,121690.0,0.3160609]
[1760098703921,0.4811858,121700.0,121690.0,0.3160609]
[1760098704140,0.7131858,121700.0,121690.0,0.3160609]
[1760098705700,0.82014145,121700.0,121690.0,0.3160609]
[1760098707977,0.82010145,121700.0,121690.0,0.3160609]
[1760098708648,0.39171733,121700.0,121690.0,0.3160609]
[1760098709848,0.39171733,121700.0,121690.0,0.24202782]
[1760098710486,0.82010145,121700.0,121690.0,0.24202782]
[1760098711803,0.58814145,121700.0,121690.0,0.24202782]
[1760098712042,0.82010145,121700.0,121690.0,0.24202782]
[1760098717090,0.39171733,121700.0,121690.0,0.24202782]
[1760098717353,0.39171733,121700.0,121690.0,0.30711399]
[1760098718411,0.15975733,121700.0,121690.0,0.30711399]
[1760098718620,0.39171733,121700.0,121690.0,0.30711399]
[1760098718831,0.15975733,121700.0,121690.0,0.30711399]
[1760098719077,0.39171733,121700.0,121690.0,0.30711399]
[1760098728761,0.15975733,121700.0,121690.0,0.30711399]
[1760098729007,0.39171733,121700.0,121690.0,0.30711399]
[1760098730295,0.15975733,121700.0,121690.0,0.30711399]
[1760098730546,0.39171733,121700.0,121690.0,0.30711399]
[1760098732005,0.15975733,121700.0,121690.0,0.30711399]
[1760098732245,0.39171733,121700.0,121690.0,0.30711399]
[1760098737740,0.15975733,121700.0,121690.0,0.30711399]
[1760098737985,0.39171733,121700.0,121690.0,0.30711399]
[1760098740190,0.82010145,121700.0,121690.0,0.24202782]
[1760098741404,0.39171733,121700.0,121690.0,0.24202782]
[1760098741621,0.82010145,121700.0,121690.0,0.24202782]
[1760098742482,0.39171733,121700.0,121690.0,0.24202782]
[1760098745324,0.39167733,121700.0,121690.0,0.24202782]
[1760098746641,0.39167733,121700.0,121690.0,0.30710999]
[1760098747764,0.15975733,121700.0,121690.0,0.30710999]
[1760098747977,0.39167733,121700.0,121690.0,0.30710999]
[1760098749918,0.15975733,121700.0,121690.0,0.30710999]
[1760098750135,0.15975733,121700.0,121690.0,0.39023205]
[1760098750562,0.39167733,121700.0,121690.0,0.39023205]
[1760098751936,0.15975733,121700.0,121690.0,0.39023205]
[1760098752153,0.82006145,121700.0,121690.0,0.39023205]
[1760098753263,0.82006145,121700.0,121690.0,0.32514988]
[1760098757594,0.39167733,121700.0,121690.0,0.32514988]
[1760098762900,0.15975733,121700.0,121690.0,0.32514988]
[1760098763197,0.39167733,121700.0,121690.0,0.32514988]
[1760098763427,0.15975733,121700.0,121690.0,0.32514988]
[1760098763608,0.39167733,121700.0,121690.0,0.32514988]
[1760098763841,0.39167733,121700.0,121690.0,0.37339211]
[1760098767325,0.71292491,121700.0,121690.0,0.37339211]
[1760098768683,0.39167733,121700.0,121690.0,0.37339211]
[1760098768891,0.71292491,121700.0,121690.0,0.37339211]
[1760098769523,0.39167733,121700.0,121690.0,0.37339211]
[1760098771077,0.18635209,121700.0,121690.0,0.37339211]
[1760098771299,0.32124758,121710.0,121700.0,0.16433853]
[1760098771511,0.55316758,121710.0,121700.0,0.26907159]
[1760098772155,0.55316758,121710.0,121700.0,0.29377324]
[1760098772588,0.32124758,121710.0,121700.0,0.29377324]
[1760098772794,0.55316758,121710.0,121700.0,0.29377324]
[1760098773987,0.55316758,121710.0,121700.0,0.29477324]
[1760098775634,0.23192,121710.0,121700.0,0.29477324]
[1760098775867,0.55316758,121710.0,121700.0,0.29477324]
[1760098777026,0.32124758,121710.0,121700.0,0.29477324]
[1760098777417,0.55316758,121710.0,121700.0,0.29477324]
[1760098778620,0.32124758,121710.0,121700.0,0.29477324]
[1760098778832,0.55316758,121710.0,121700.0,0.29477324]
[1760098780052,0.23192,121710.0,121700.0,0.29477324]
[1760098780272,0.32124758,121710.0,121700.0,0.29477324]
[1760098780474,0.55316758,121710.0,121700.0,0.29477324]
[1760098784300,0.74817835,121720.0,121710.0,0.16432503]
[1760098784509,0.74817835,121720.0,121710.0,0.25363736]
[1760098784510,1.46566766,121720.0,121710.0,0.25363736]
[1760098784767,1.46566766,121720.0,121710.0,0.26075486]